lending/lending_fUSD_20240710
["ID","MTS","AMOUNT","RATE_DAILY","PERIOD"]
[331611230,1720581039715,-500.0,0.00013698,2]
[331611231,1720581039725,-500.0,0.00013698,2]
[331611232,1720581039734,-1119.34,0.00013698,2]
[331611233,1720581039745,-1964.44,0.00013698,2]
[331611234,1720581039754,-1238.82,0.00013698,2]
[331611235,1720581039764,-1081.35,0.00013698,2]
[331611236,1720581039774,-967.37,0.00013698,2]
[331611237,1720581039783,-1687.67,0.00013698,2]
[331611238,1720581039793,-500.0,0.00013698,2]
[331611239,1720581039803,-779.79,0.00013698,2]
[331611240,1720581039814,-2547.44,0.00013698,2]
[331611241,1720581039824,-500.0,0.00013698,2]
[331611242,1720581039834,-1046.44,0.00013698,2]
[331611243,1720581039844,-1045.75,0.00013698,2]
[331611244,1720581039855,-1391.93,0.00013698,2]
[331611245,1720581039864,-500.0,0.00013698,2]
[331611246,1720581039875,-500.0,0.00013698,2]
[331611247,1720581039885,-500.0,0.00013698,2]
[331611248,1720581039895,-500.0,0.00013698,2]
[331611249,1720581039904,-2456.24,0.00013698,2]
[331611250,1720581039914,-500.0,0.00013698,2]
[331611251,1720581039924,-1221.97,0.00013698,2]
[331611252,1720581039935,-764.42,0.00013698,2]
[331611253,1720581039945,-2124.29,0.00013698,2]
[331611254,1720581039954,-2150.36,0.00013698,2]
[331611255,1720581039964,-441.77424545,0.00013698,2]
[331611256,1720581039974,-617.35,0.00013698,2]
[331611257,1720581039983,-138.84136299,0.00013698,2]
[331611261,1720581040918,-450.59144192,0.00013698,2]
[331611262,1720581043019,-504.83275715,0.00012241,2]
[331611263,1720581043031,-1195.16724285,0.00012241,2]
[331611264,1720581043041,-1700.0,0.00013063,2]
[331611265,1720581043050,-322.16721945,0.00013674,2]
[331611266,1720581043060,-1655.94719509,0.00013698,2]
[331611267,1720581043070,-500.0,0.00013698,2]
[331611268,1720581043079,-500.0,0.00013698,2]
[331611269,1720581043089,-500.0,0.00013698,2]
[331611270,1720581043098,-1499.65,0.00013698,2]
[331611271,1720581043108,-500.0,0.00013698,2]
[331611272,1720581043119,-1409.12,0.00013698,2]
[331611273,1720581043128,-3171.66,0.00013698,2]
[331611274,1720581043142,-500.0,0.00013698,2]
[331611275,1720581043151,-500.0,0.00013698,2]
[331611276,1720581043160,-500.08,0.00013698,2]
[331611277,1720581043170,-784.2,0.00013698,2]
[331611278,1720581043179,-396.60073123,0.00013698,2]
[331611279,1720581043188,-500.0,0.00013698,2]
[331611280,1720581043197,-1774.54,0.00013698,2]
[331611281,1720581043207,-1739.58,0.00013698,2]
[331611282,1720581043216,-3943.04,0.00013698,2]
[331611283,1720581043226,-226.5735026,0.00013698,2]
[331611284,1720581043237,-273.4264974,0.00013698,2]
[331611285,1720581043247,-216.61187627,0.00013698,2]
[331611286,1720581043259,-514.45284918,0.00013698,2]
[331611287,1720581043271,-1472.49527455,0.00013698,2]
[331611288,1720581043280,-866.92,0.00013698,2]
[331611291,1720581043289,-500.0,0.00013698,2]
[331611292,1720581043299,-500.0,0.00013698,2]
[331611294,1720581043308,-687.27,0.00013698,2]
[331611296,1720581043317,-500.0,0.00013698,2]
[331611298,1720581043327,-500.0,0.00013698,2]
[331611300,1720581043336,-500.0,0.00013698,2]
[331611302,1720581043346,-874.12,0.00013698,2]
[331611303,1720581043356,-1166.6,0.00013698,2]
[331611305,1720581043365,-2521.95,0.00013698,2]
[331611307,1720581043375,-166.64472546,0.00013698,2]
[331611315,1720581043437,-1203.17527454,0.00013698,2]
[331611317,1720581043447,-500.0,0.00013698,2]
[331611318,1720581043456,-3432.79,0.00013698,2]
[331611321,1720581043466,-1264.34,0.00013698,2]
[331611323,1720581043476,-1242.71,0.00013698,2]
[331611324,1720581043485,-740.16,0.00013698,2]
[331611326,1720581043494,-500.0,0.00013698,2]
[331611328,1720581043503,-3914.54,0.00013698,2]
[331611330,1720581043512,-669.53,0.00013698,2]
[331611331,1720581043521,-500.0,0.00013698,2]
[331611332,1720581043531,-598.45,0.00013698,2]
[331611333,1720581043540,-500.0,0.00013698,2]
[331611334,1720581043549,-793.84472546,0.00013698,2]
[331611335,1720581043560,-592.21677278,0.00013698,2]
[331611336,1720581044426,-2616.28238464,0.00013698,2]
[331611337,1720581044438,-104.68611712,0.00013698,2]
[331611338,1720581044447,-357.18838288,0.00013698,2]
[331611339,1720581044458,-813.78799327,0.00013698,2]
[331611340,1720581044470,-2448.86362385,0.00013698,2]
[331611341,1720581044479,-500.0,0.00013698,2]
[331611342,1720581044489,-1015.67,0.00013698,2]
[331611343,1720581044498,-1087.35,0.00013698,2]
[331611344,1720581044507,-2416.77,0.00013698,2]
[331611345,1720581044516,-1879.12,0.00013698,2]
[331611346,1720581044525,-684.53,0.00013698,2]
[331611347,1720581044535,-500.0,0.00013698,2]
[331611348,1720581044544,-500.0,0.00013698,2]
[331611349,1720581044553,-2707.73,0.00013698,2]
[331611350,1720581044563,-1060.64,0.00013698,2]
[331611351,1720581044572,-500.0,0.00013698,2]
[331611352,1720581044581,-500.0,0.00013698,2]
[331611353,1720581044590,-949.61,0.00013698,2]
[331611354,1720581044599,-3923.88,0.00013698,2]
[331611355,1720581044610,-500.0,0.00013698,2]
[331611356,1720581044619,-1229.79,0.00013698,2]
[331611357,1720581044628,-1275.49,0.00013698,2]
[331611358,1720581044638,-1184.56,0.00013698,2]
[331611359,1720581044648,-500.0,0.00013698,2]
[331611360,1720581044657,-500.0,0.00013698,2]
[331611361,1720581044667,-500.0,0.00013698,2]
[331611362,1720581044677,-14453.95,0.00013698,2]
[331611363,1720581044687,-5561.63,0.00013698,2]
[331611364,1720581044697,-535.69,0.00013698,2]
[331611365,1720581044708,-500.0,0.00013698,2]
[331611366,1720581044718,-3351.29,0.00013698,2]
[331611367,1720581044729,-556.6,0.00013698,2]
[331611368,1720581044738,-2153.0,0.00013698,2]
[331611369,1720581044748,-1266.49,0.00013698,2]
[331611370,1720581044758,-455.17369501,0.00013698,2]
[331611371,1720581044877,-2318.54630499,0.00013698,2]
[331611372,1720581044887,-1018.52,0.00013698,2]
[331611373,1720581044897,-743.03,0.00013698,2]
[331611374,1720581044907,-500.0,0.00013698,2]
[331611375,1720581044917,-500.0,0.00013698,2]
[331611376,1720581044928,-995.12,0.00013698,2]
[331611377,1720581044937,-500.0,0.00013698,2]
[331611378,1720581044949,-8107.74,0.00013698,2]
[331611379,1720581044959,-826.79,0.00013698,2]
[331611380,1720581044969,-984.34,0.00013698,2]
[331611381,1720581044980,-2811.55,0.00013698,2]
[331611382,1720581044990,-1069.8,0.00013698,2]
[331611383,1720581044999,-500.0,0.00013698,2]
[331611384,1720581045008,-500.0,0.00013698,2]
[331611385,1720581045018,-2287.44,0.00013698,2]
[331611386,1720581045027,-6153.34,0.00013698,2]
[331611387,1720581045036,-500.0,0.00013698,2]
[331611388,1720581045045,-5154.63,0.00013698,2]
[331611389,1720581045054,-500.0,0.00013698,2]
[331611390,1720581045064,-500.0,0.00013698,2]
[331611391,1720581045072,-600.3095784,0.00013698,2]
[331611392,1720581045081,-500.0,0.00013698,2]
[331611393,1720581045091,-2161.27,0.00013698,2]
[331611394,1720581045100,-500.0,0.00013698,2]
[331611395,1720581045113,-1895.8,0.00013698,2]
[331611396,1720581045122,-500.0,0.00013698,2]
[331611397,1720581045131,-500.0,0.00013698,2]
[331611398,1720581045142,-1634.45,0.00013698,2]
[331611399,1720581045153,-733.93,0.00013698,2]
[331611400,1720581045163,-3149.67,0.00013698,2]
[331611401,1720581045173,-3197.54,0.00013698,2]
[331611402,1720581045182,-500.0,0.00013698,2]
[331611403,1720581045193,-1486.77,0.00013698,2]
[331611404,1720581045202,-1158.62,0.00013698,2]
[331611405,1720581045213,-634.26,0.00013698,2]
[331611406,1720581045223,-500.0,0.00013698,2]
[331611407,1720581045233,-500.0,0.00013698,2]
[331611408,1720581045243,-500.0,0.00013698,2]
[331611409,1720581045253,-1719.42,0.00013698,2]
[331611410,1720581045263,-965.58,0.00013698,2]
[331611411,1720581045273,-500.0,0.00013698,2]
[331611412,1720581045282,-2046.49,0.00013698,2]
[331611413,1720581045291,-2307.98,0.00013698,2]
[331611414,1720581045300,-1931.73,0.00013698,2]
[331611415,1720581045311,-500.0,0.00013698,2]
[331611416,1720581045320,-500.0,0.00013698,2]
[331611417,1720581045329,-6657.15,0.00013698,2]
[331611418,1720581045338,-1940.2,0.00013698,2]
[331611419,1720581045348,-500.0,0.00013698,2]
[331611420,1720581045359,-1629.44,0.00013698,2]
[331611421,1720581045368,-500.0,0.00013698,2]
[331611422,1720581045377,-1551.82,0.00013698,2]
[331611423,1720581045387,-732.71,0.00013698,2]
[331611424,1720581045396,-1101.35,0.00013698,2]
[331611425,1720581045405,-500.0,0.00013698,2]
[331611426,1720581045415,-500.0,0.00013698,2]
[331611427,1720581045425,-500.0,0.00013698,2]
[331611428,1720581045434,-14123.36,0.00013698,2]
[331611429,1720581045444,-1647.7,0.00013698,2]
[331611430,1720581045454,-500.0,0.00013698,2]
[331611431,1720581045464,-500.0,0.00013698,2]
[331611432,1720581045473,-792.85,0.00013698,2]
[331611433,1720581045483,-500.0,0.00013698,2]
[331611434,1720581045493,-641.36,0.00013698,2]
[331611435,1720581045503,-1989.83,0.00013698,2]
[331611436,1720581045513,-2586.17,0.00013698,2]
[331611437,1720581045523,-500.0,0.00013698,2]
[331611438,1720581045533,-606.75,0.00013699,2]
[331611439,1720581045542,-193.19989319,0.000137,2]
[331611440,1720581045551,-602.54108375,0.000137,2]
[331611441,1720581045561,-837.41529442,0.000137,2]
[331611442,1720581045570,-450.105,0.00013701,2]
[331611443,1720581045580,-543.47,0.00013701,2]
[331611444,1720581045590,-166.918,0.00013701,2]
[331611445,1720581045599,-150.42,0.00013701,2]
[331611446,1720581045610,-1294.0,0.00013701,2]
[331611447,1720581045619,-2377.0,0.00013701,2]
[331611448,1720581045628,-550.377,0.00013701,2]
[331611449,1720581045639,-1990.0,0.00013701,2]
[331611450,1720581045649,-835.066,0.00013701,2]
[331611451,1720581045659,-34275.387,0.00013701,2]
[331611452,1720581045668,-3303.66127454,0.00013736,2]
[331611453,1720581045677,-322.16721945,0.00013749,2]
[331611454,1720581045686,-500.0,0.00013752,2]
[331611455,1720581045696,-1365.78,0.00013752,2]
[331611456,1720581045705,-1430.22,0.00013752,2]
[331611457,1720581045715,-413.40626355,0.00013752,2]
[331611458,1720581045725,-170.76637275,0.00013752,2]
[331611459,1720581045734,-3718.27,0.00013752,2]
[331611460,1720581045743,-901.68,0.00013752,2]
[331611461,1720581045753,-2857.47,0.00013752,2]
[331611462,1720581045762,-3749.11,0.00013752,2]
[331611463,1720581045772,-2292.04,0.00013752,2]
[331611464,1720581045782,-1071.48,0.00013752,2]
[331611465,1720581045792,-1437.39,0.00013752,2]
[331611466,1720581045801,-855.14,0.00013752,2]
[331611467,1720581045811,-1151.74,0.00013752,2]
[331611468,1720581045821,-500.0,0.00013752,2]
[331611469,1720581045830,-1608.29,0.00013752,2]
[331611470,1720581045839,-3015.72,0.00013752,2]
[331611471,1720581045848,-500.0,0.00013752,2]
[331611472,1720581045858,-500.0,0.00013752,2]
[331611473,1720581045867,-597.74,0.00013752,2]
[331611474,1720581045876,-4124.15,0.00013752,2]
[331611475,1720581045886,-905.51,0.00013752,2]
[331611476,1720581045895,-1143.7,0.00013752,2]
[331611477,1720581045904,-500.0,0.00013753,2]
[331611478,1720581045914,-500.0,0.00013753,2]
[331611479,1720581045923,-500.0,0.00013753,2]
[331611480,1720581045933,-500.0,0.00013753,2]
[331611481,1720581045944,-3087.98,0.00013753,2]
[331611482,1720581045953,-500.0,0.00013753,2]
[331611483,1720581045963,-500.0,0.00013753,2]
[331611484,1720581045973,-877.91,0.00013753,2]
[331611485,1720581045982,-500.0,0.00013753,2]
[331611486,1720581045992,-169.26693336,0.00013753,2]
[331611487,1720581046001,-1550.95,0.00013753,2]
[331611488,1720581046011,-500.0,0.00013753,2]
[331611489,1720581046021,-892.88,0.00013753,2]
[331611490,1720581046030,-500.0,0.00013753,2]
[331611491,1720581046040,-500.0,0.00013753,2]
[331611492,1720581046049,-500.0,0.00013753,2]
[331611493,1720581046059,-1844.83,0.00013753,2]
[331611494,1720581046068,-203.09220209,0.00013753,2]
[331611495,1720581046077,-2890.16,0.00013753,2]
[331611496,1720581046087,-500.0,0.00013753,2]
[331611497,1720581046099,-165.61920975,0.00013753,2]
[331611498,1720581046110,-4315.34,0.00013753,2]
[331611501,1720581046120,-500.0,0.00013753,2]
[331611504,1720581046129,-849.77,0.00013753,2]
[331611507,1720581046139,-500.0,0.00013753,2]
[331611510,1720581046148,-500.0,0.00013753,2]
[331611513,1720581046157,-1831.54,0.00013753,2]
[331611515,1720581046167,-2114.77,0.00013753,2]
[331611517,1720581046176,-500.0,0.00013753,2]
[331611519,1720581046185,-200.0,0.00013753,2]
[331611520,1720581046195,-3379.6,0.00013753,2]
[331611521,1720581046204,-500.0,0.00013753,2]
[331611522,1720581046215,-1397.14,0.00013753,2]
[331611523,1720581046224,-500.0,0.00013753,2]
[331611524,1720581046234,-500.0,0.00013753,2]
[331611525,1720581046244,-2431.91,0.00013753,2]
[331611526,1720581046254,-500.0,0.00013753,2]
[331611527,1720581046264,-500.0,0.00013753,2]
[331611528,1720581046274,-3779.98,0.00013753,2]
[331611529,1720581046283,-227.68516142,0.00013753,2]
[331611530,1720581046293,-500.0,0.00013753,2]
[331611531,1720581046302,-2727.48,0.00013753,2]
[331611532,1720581046311,-500.0,0.00013753,2]
[331611534,1720581046321,-2822.82,0.00013753,2]
[331611536,1720581046330,-500.0,0.00013753,2]
[331611538,1720581046340,-2873.3,0.00013753,2]
[331611539,1720581046350,-500.0,0.00013753,2]
[331611540,1720581046361,-390.22584326,0.00013753,2]
[331611541,1720581046370,-2274.44,0.00013753,2]
[331611542,1720581046380,-500.0,0.00013753,2]
[331611543,1720581046394,-500.0,0.00013753,2]
[331611544,1720581046404,-1539.83,0.00013753,2]
[331611545,1720581046414,-500.0,0.00013753,2]
[331611546,1720581046424,-500.0,0.00013753,2]
[331611547,1720581046434,-500.0,0.00013753,2]
[331611548,1720581046444,-1720.27,0.00013753,2]
[331611549,1720581046454,-500.0,0.00013753,2]
[331611550,1720581046464,-2165.73,0.00013753,2]
[331611551,1720581046474,-500.0,0.00013753,2]
[331611552,1720581046484,-3081.17,0.00013753,2]
[331611553,1720581046493,-228.86802173,0.00013753,2]
[331611554,1720581046503,-500.0,0.00013753,2]
[331611555,1720581046512,-2347.05,0.00013753,2]
[331611556,1720581046522,-500.0,0.00013753,2]
[331611557,1720581046531,-500.0,0.00013753,2]
[331611558,1720581046541,-500.0,0.00013753,2]
[331611559,1720581046550,-178.74889657,0.00013753,2]
[331611560,1720581046560,-500.0,0.00013753,2]
[331611561,1720581046569,-500.0,0.00013753,2]
[331611562,1720581046579,-500.0,0.00013753,2]
[331611563,1720581046969,-271.68645316,0.00013753,2]
[331611564,1720581046980,-500.0,0.00013753,2]
[331611565,1720581046989,-500.0,0.00013753,2]
[331611566,1720581046999,-500.0,0.00013753,2]
[331611567,1720581047009,-500.0,0.00013753,2]
[331611568,1720581047018,-500.0,0.00013753,2]
[331611569,1720581047028,-500.0,0.00013753,2]
[331611570,1720581047038,-500.0,0.00013753,2]
[331611571,1720581047048,-500.0,0.00013753,2]
[331611572,1720581047057,-500.0,0.00013753,2]
[331611573,1720581047067,-500.0,0.00013753,2]
[331611574,1720581047076,-500.0,0.00013753,2]
[331611575,1720581047086,-500.0,0.00013753,2]
[331611576,1720581047097,-500.0,0.00013753,2]
[331611577,1720581047108,-500.0,0.00013753,2]
[331611578,1720581047117,-500.0,0.00013753,2]
[331611579,1720581047128,-652.29,0.00013753,2]
[331611580,1720581047139,-485.9470183,0.00013753,2]
[331611581,1720581047148,-500.0,0.00013753,2]
[331611582,1720581047159,-533.66655011,0.00013753,2]
[331611583,1720581047168,-1371.22,0.00013753,2]
[331611584,1720581047177,-500.0,0.00013753,2]
[331611585,1720581047188,-630.51445544,0.00013753,2]
[331611586,1720581047198,-500.0,0.00013753,2]
[331611587,1720581047207,-500.0,0.00013753,2]
[331611588,1720581047218,-500.0,0.00013753,2]
[331611589,1720581047227,-500.0,0.00013753,2]
[331611590,1720581047237,-1097.5,0.00013753,2]
[331611591,1720581047246,-500.0,0.00013753,2]
[331611592,1720581047256,-500.0,0.00013753,2]
[331611593,1720581047265,-443.72350758,0.00013753,2]
[331611594,1720581047274,-500.0,0.00013753,2]
[331611595,1720581047283,-500.0,0.00013753,2]
[331611596,1720581047292,-174.56482998,0.00013753,2]
[331611597,1720581047302,-1172.76,0.00013753,2]
[331611598,1720581047312,-500.0,0.00013753,2]
[331611599,1720581047321,-500.0,0.00013753,2]
[331611600,1720581047331,-500.0,0.00013753,2]
[331611601,1720581047341,-500.0,0.00013753,2]
[331611602,1720581047350,-1502.2,0.00013753,2]
[331611603,1720581047360,-500.0,0.00013753,2]
[331611604,1720581047370,-500.0,0.00013753,2]
[331611605,1720581047379,-1163.65,0.00013753,2]
[331611606,1720581047388,-500.0,0.00013753,2]
[331611607,1720581047398,-500.0,0.00013753,2]
[331611608,1720581047408,-500.0,0.00013753,2]
[331611609,1720581047417,-500.0,0.00013753,2]
[331611610,1720581047426,-594.25723851,0.00013753,2]
[331611611,1720581047435,-500.0,0.00013753,2]
[331611612,1720581047444,-1221.12,0.00013753,2]
[331611613,1720581047454,-1659.0,0.00013753,2]
[331611614,1720581047463,-500.0,0.00013753,2]
[331611615,1720581047472,-500.0,0.00013753,2]
[331611616,1720581047482,-500.0,0.00013753,2]
[331611617,1720581047491,-1504.27,0.00013753,2]
[331611618,1720581047501,-500.0,0.00013753,2]
[331611619,1720581047511,-500.0,0.00013753,2]
[331611620,1720581047519,-1430.1,0.00013753,2]
[331611621,1720581047529,-500.0,0.00013753,2]
[331611622,1720581047538,-500.0,0.00013753,2]
[331611623,1720581047547,-500.0,0.00013753,2]
[331611624,1720581047557,-1137.34,0.00013753,2]
[331611625,1720581047566,-1591.72,0.00013753,2]
[331611626,1720581047576,-500.0,0.00013753,2]
[331611627,1720581047585,-500.0,0.00013753,2]
[331611628,1720581047595,-557.33,0.00013753,2]
[331611629,1720581047607,-500.0,0.00013753,2]
[331611630,1720581047616,-500.0,0.00013753,2]
[331611631,1720581047625,-950.92,0.00013753,2]
[331611632,1720581047635,-3840.16,0.00013753,2]
[331611633,1720581047644,-939.02,0.00013753,2]
[331611634,1720581047654,-500.0,0.00013753,2]
[331611635,1720581047664,-500.0,0.00013753,2]
[331611636,1720581047674,-748.08,0.00013753,2]
[331611637,1720581047683,-500.0,0.00013753,2]
[331611638,1720581047692,-500.0,0.00013753,2]
[331611639,1720581047701,-1125.48,0.00013753,2]
[331611640,1720581047710,-3087.9,0.00013753,2]
[331611641,1720581047719,-500.0,0.00013753,2]
[331611642,1720581047729,-914.73,0.00013753,2]
[331611643,1720581047738,-500.0,0.00013753,2]
[331611644,1720581047747,-500.0,0.00013753,2]
[331611645,1720581047757,-500.0,0.00013753,2]
[331611646,1720581047766,-500.0,0.00013753,2]
[331611647,1720581047775,-894.02,0.00013753,2]
[331611648,1720581047784,-500.0,0.00013753,2]
[331611649,1720581047793,-500.0,0.00013753,2]
[331611650,1720581047802,-500.0,0.00013753,2]
[331611651,1720581047811,-704.13,0.00013753,2]
[331611652,1720581047820,-500.0,0.00013753,2]
[331611653,1720581047829,-500.0,0.00013753,2]
[331611654,1720581047838,-500.0,0.00013753,2]
[331611655,1720581047847,-1597.01,0.00013753,2]
[331611656,1720581047856,-684.38,0.00013753,2]
[331611657,1720581047865,-1816.69,0.00013753,2]
[331611658,1720581047875,-500.0,0.00013753,2]
[331611659,1720581047884,-500.0,0.00013753,2]
[331611660,1720581047893,-533.56,0.00013753,2]
[331611661,1720581047902,-500.0,0.00013753,2]
[331611662,1720581047912,-500.0,0.00013753,2]
[331611663,1720581047921,-1995.77,0.00013753,2]
[331611664,1720581047931,-500.0,0.00013753,2]
[331611665,1720581047940,-861.11,0.00013753,2]
[331611666,1720581047951,-500.0,0.00013753,2]
[331611667,1720581047961,-1705.24,0.00013753,2]
[331611668,1720581047970,-500.0,0.00013753,2]
[331611669,1720581047979,-945.08,0.00013753,2]
[331611670,1720581047988,-500.0,0.00013753,2]
[331611671,1720581047997,-1580.18,0.00013753,2]
[331611672,1720581048006,-500.0,0.00013753,2]
[331611673,1720581048015,-500.0,0.00013753,2]
[331611674,1720581048025,-500.0,0.00013753,2]
[331611675,1720581048034,-2170.44,0.00013753,2]
[331611676,1720581048043,-935.28,0.00013753,2]
[331611677,1720581048052,-500.0,0.00013753,2]
[331611678,1720581048061,-500.0,0.00013753,2]
[331611679,1720581048070,-1676.17,0.00013753,2]
[331611680,1720581048079,-500.0,0.00013753,2]
[331611681,1720581048088,-500.0,0.00013753,2]
[331611682,1720581048097,-500.0,0.00013753,2]
[331611683,1720581048106,-672.52,0.00013753,2]
[331611684,1720581048115,-500.0,0.00013753,2]
[331611685,1720581048124,-500.0,0.00013753,2]
[331611686,1720581048134,-500.0,0.00013753,2]
[331611687,1720581048146,-500.0,0.00013753,2]
[331611688,1720581048157,-673.08,0.00013753,2]
[331611689,1720581048167,-3430.04,0.00013753,2]
[331611690,1720581048177,-500.0,0.00013753,2]
[331611691,1720581048187,-500.0,0.00013753,2]
[331611692,1720581048197,-500.0,0.00013753,2]
[331611693,1720581048207,-500.0,0.00013753,2]
[331611694,1720581048217,-735.0,0.00013753,2]
[331611695,1720581048227,-500.0,0.00013753,2]
[331611696,1720581048236,-500.0,0.00013753,2]
[331611697,1720581048246,-500.0,0.00013753,2]
[331611698,1720581048255,-500.0,0.00013753,2]
[331611699,1720581048264,-1098.68,0.00013753,2]
[331611700,1720581048274,-521.59,0.00013753,2]
[331611701,1720581048283,-855.37,0.00013753,2]
[331611702,1720581048293,-500.0,0.00013753,2]
[331611703,1720581048303,-500.0,0.00013753,2]
[331611704,1720581048313,-500.0,0.00013753,2]
[331611705,1720581048323,-1082.32,0.00013753,2]
[331611706,1720581048332,-500.0,0.00013753,2]
[331611707,1720581048342,-803.44,0.00013753,2]
[331611708,1720581048351,-500.0,0.00013753,2]
[331611709,1720581048363,-733.56,0.00013753,2]
[331611710,1720581048373,-500.0,0.00013753,2]
[331611711,1720581048382,-2704.38,0.00013753,2]
[331611712,1720581048392,-500.0,0.00013753,2]
[331611713,1720581048401,-500.0,0.00013753,2]
[331611714,1720581048410,-2150.21,0.00013753,2]
[331611715,1720581048420,-500.0,0.00013753,2]
[331611716,1720581048429,-164.73591466,0.00013753,2]
[331611717,1720581048439,-500.0,0.00013753,2]
[331611718,1720581048448,-521.8,0.00013753,2]
[331611719,1720581048457,-500.0,0.00013753,2]
[331611720,1720581048466,-2479.0,0.00013753,2]
[331611721,1720581048476,-500.0,0.00013753,2]
[331611722,1720581048485,-500.0,0.00013753,2]
[331611723,1720581048495,-500.0,0.00013753,2]
[331611724,1720581048504,-500.0,0.00013753,2]
[331611725,1720581048513,-1854.92,0.00013753,2]
[331611726,1720581048523,-500.0,0.00013753,2]
[331611727,1720581048532,-500.0,0.00013753,2]
[331611728,1720581048541,-500.0,0.00013753,2]
[331611729,1720581048550,-1041.34,0.00013753,2]
[331611730,1720581048560,-500.0,0.00013753,2]
[331611731,1720581048570,-954.84,0.00013753,2]
[331611732,1720581048579,-693.51,0.00013753,2]
[331611733,1720581048589,-500.0,0.00013753,2]
[331611734,1720581048598,-500.0,0.00013753,2]
[331611735,1720581048610,-606.98,0.00013753,2]
[331611736,1720581048620,-4149.1,0.00013753,2]
[331611737,1720581048629,-500.0,0.00013753,2]
[331611738,1720581048639,-500.0,0.00013753,2]
[331611739,1720581048648,-500.0,0.00013753,2]
[331611740,1720581048658,-500.0,0.00013753,2]
[331611741,1720581048667,-500.0,0.00013753,2]
[331611742,1720581048676,-500.0,0.00013753,2]
[331611743,1720581048686,-1393.63,0.00013753,2]
[331611744,1720581048695,-500.0,0.00013753,2]
[331611745,1720581048705,-2846.49,0.00013753,2]
[331611746,1720581048714,-500.0,0.00013753,2]
[331611747,1720581048723,-500.0,0.00013753,2]
[331611748,1720581048733,-500.0,0.00013753,2]
[331611749,1720581048742,-500.0,0.00013753,2]
[331611750,1720581048752,-500.0,0.00013753,2]
[331611751,1720581048761,-500.0,0.00013753,2]
[331611752,1720581048770,-514.0575953,0.00013753,2]
[331611753,1720581048779,-500.0,0.00013753,2]
[331611754,1720581048788,-500.0,0.00013753,2]
[331611755,1720581048797,-500.0,0.00013753,2]
[331611756,1720581048807,-554.33,0.00013753,2]
[331611757,1720581048816,-500.0,0.00013753,2]
[331611758,1720581048825,-1328.09,0.00013753,2]
[331611759,1720581048834,-500.0,0.00013753,2]
[331611760,1720581048844,-194.24789372,0.00013753,2]
[331611761,1720581048853,-500.0,0.00013753,2]
[331611762,1720581048863,-500.0,0.00013753,2]
[331611763,1720581048872,-4181.94,0.00013753,2]
[331611764,1720581048882,-566.31,0.00013753,2]
[331611765,1720581048891,-500.0,0.00013753,2]
[331611766,1720581048901,-500.0,0.00013753,2]
[331611767,1720581048912,-500.0,0.00013753,2]
[331611768,1720581048923,-915.11,0.00013753,2]
[331611769,1720581048934,-500.0,0.00013753,2]
[331611770,1720581048944,-500.0,0.00013753,2]
[331611771,1720581048956,-1585.84,0.00013753,2]